fUSD/lending_fUSD_20241215
["ID","MTS","AMOUNT","RATE_DAILY","PERIOD"]
[345395135,1734232252619,-500.0,0.00013978,2]
[345395136,1734232252629,-500.0,0.00013978,2]
[345395137,1734232252638,-151.0,0.00013978,2]
[345395138,1734232252648,-151.0,0.00013978,2]
[345395139,1734232252658,-151.0,0.00013978,2]
[345395140,1734232252668,-500.0,0.00013978,2]
[345395141,1734232252678,-151.0,0.00013978,2]
[345395142,1734232252688,-500.0,0.00013978,2]
[345395143,1734232252700,-500.0,0.00013978,2]
[345395144,1734232252711,-479.477058,0.00013978,2]
[345395145,1734232252721,-479.477058,0.00013978,2]
[345395146,1734232252735,-500.0,0.00013978,2]
[345395147,1734232252744,-500.0,0.00013978,2]
[345395148,1734232252754,-227.112408,0.00013978,2]
[345395149,1734232252764,-500.0,0.00013978,2]
[345395150,1734232252774,-227.112408,0.00013978,2]
[345395151,1734232252783,-1000.0,0.00013979,2]
[345395152,1734232252793,-504.32861674,0.00013979,2]
[345395153,1734232252807,-458.71479895,0.00013979,2]
[345395154,1734232252818,-501.18449806,0.00013979,2]
[345395155,1734232252828,-151.0,0.00013979,2]
[345395156,1734232252838,-151.0,0.00013979,2]
[345395157,1734232252848,-151.0,0.00013979,2]
[345395158,1734232252857,-281.642637,0.00013979,2]
[345395159,1734232252867,-449.45828809,0.00013979,2]
[345395160,1734232252877,-200.0,0.00013979,2]
[345395161,1734232252888,-151.0,0.00013979,2]
[345395162,1734232252898,-151.0,0.00013979,2]
[345395163,1734232252908,-151.0,0.00013979,2]
[345395164,1734232252917,-216.50176259,0.00013979,2]
[345395165,1734232252927,-151.0,0.00013979,2]
[345395166,1734232252939,-151.0,0.00013979,2]
[345395167,1734232252950,-500.0,0.00013979,2]
[345395168,1734232252960,-500.0,0.00013979,2]
[345395169,1734232252969,-151.0,0.00013979,2]
[345395170,1734232252979,-151.0,0.00013979,2]
[345395171,1734232252989,-500.0,0.00013979,2]
[345395172,1734232252998,-500.0,0.00013979,2]
[345395173,1734232253008,-151.0,0.00013979,2]
[345395174,1734232253017,-151.0,0.00013979,2]
[345395175,1734232253028,-151.0,0.00013979,2]
[345395176,1734232253038,-151.0,0.00013979,2]
[345395177,1734232253047,-151.0,0.00013979,2]
[345395178,1734232253057,-500.0,0.00013979,2]
[345395179,1734232253067,-500.0,0.00013979,2]
[345395180,1734232253077,-151.0,0.00013979,2]
[345395181,1734232253088,-151.0,0.00013979,2]
[345395182,1734232253098,-152.963661,0.00013979,2]
[345395183,1734232253107,-500.0,0.00013979,2]
[345395184,1734232253117,-500.0,0.00013979,2]
[345395185,1734232253127,-200.0,0.00013979,2]
[345395186,1734232253137,-207.040908,0.00013979,2]
[345395187,1734232253146,-207.040908,0.00013979,2]
[345395188,1734232253156,-151.0,0.00013979,2]
[345395189,1734232253166,-207.040908,0.00013979,2]
[345395190,1734232253175,-151.0,0.00013979,2]
[345395191,1734232253186,-207.040908,0.00013979,2]
[345395192,1734232253195,-151.0,0.00013979,2]
[345395193,1734232253205,-151.0,0.00013979,2]
[345395194,1734232253215,-216.211773,0.00013979,2]
[345395195,1734232253224,-216.211773,0.00013979,2]
[345395196,1734232253235,-216.211773,0.00013979,2]
[345395197,1734232253244,-216.211773,0.00013979,2]
[345395198,1734232253254,-500.0,0.00013979,2]
[345395199,1734232253264,-500.0,0.00013979,2]
[345395200,1734232253274,-1044.1,0.00013979,2]
[345395201,1734232253283,-500.0,0.00013979,2]
[345395202,1734232253293,-500.0,0.00013979,2]
[345395203,1734232253303,-500.0,0.00013979,2]
[345395204,1734232253313,-500.0,0.00013979,2]
[345395205,1734232253323,-553.65744212,0.00013979,2]
[345395206,1734232253333,-500.0,0.00013979,2]
[345395207,1734232253343,-391.08,0.00013979,2]
[345395208,1734232253352,-518.62073583,0.00013979,2]
[345395209,1734232253362,-537.10954865,0.00013979,2]
[345395210,1734232253372,-500.0,0.00013979,2]
[345395211,1734232253382,-183.92984754,0.00013979,2]
[345395212,1734232253391,-500.0,0.00013979,2]
[345395213,1734232253401,-500.0,0.00013979,2]
[345395214,1734232253411,-500.0,0.00013979,2]
[345395215,1734232253421,-350.50717,0.00013979,2]
[345395216,1734232253431,-500.0,0.00013979,2]
[345395217,1734232253441,-500.0,0.00013979,2]
[345395218,1734232253459,-500.0,0.00013979,2]
[345395219,1734232253468,-252.72573138,0.00013979,2]
[345395220,1734232253479,-151.0,0.00013979,2]
[345395221,1734232253489,-648.4897977,0.00013979,2]
[345395222,1734232253498,-508.86795886,0.00013979,2]
[345395223,1734232253509,-333.40809072,0.00013979,2]
[345395224,1734232253519,-99.14758525,0.00013979,2]
[345395225,1734232253543,-400.85241475,0.00013979,2]
[345395226,1734232253554,-1377.716706,0.00013979,2]
[345395227,1734232253564,-1377.716706,0.00013979,2]
[345395228,1734232253573,-500.0,0.00013979,2]
[345395229,1734232253584,-319.9350853,0.00013979,2]
[345395237,1734233233148,-602.09746151,9.937e-05,2]
[345395238,1734233233172,-542.5378484,9.999e-05,2]
[345395260,1734233357110,-17539.32264,0.0001,2]
[345395286,1734233432083,-1001.3784,0.0001,2]
[345395287,1734233432295,-6960.0000001,0.0001,2]
[345395342,1734233438225,-133808.85981913,0.0001,2]
[345395343,1734233438237,-8863.03716437,0.00010037,2]
[345395344,1734233438247,-289.12,0.00010137,2]
[345395345,1734233438257,-910.26,0.00010878,2]
[345395346,1734233438266,-162.40152757,0.000126,2]
[345395347,1734233438275,-250.0,0.00012623,2]
[345395348,1734233438285,-1000.0,0.00012629,2]
[345395349,1734233438295,-250.0,0.00012661,2]
[345395350,1734233438306,-2272.33,0.00012674,2]
[345395351,1734233438317,-210.64,0.00012707,2]
[345395352,1734233438326,-250.0,0.00012761,2]
[345395353,1734233438337,-250.0,0.00012763,2]
[345395354,1734233438347,-780.58,0.00012774,2]
[345395355,1734233438357,-450.0,0.00013,2]
[345395356,1734233438372,-150.121512,0.00013098,2]
[345395357,1734233438382,-150.121512,0.00013098,3]
[345395358,1734233438392,-150.0,0.00013136,2]
[345395359,1734233438403,-910.26,0.00013142,2]
[345395360,1734233438413,-150.121512,0.00013148,3]
[345395361,1734233438423,-150.121512,0.00013148,2]
[345395362,1734233438433,-300.0,0.000132,4]
[345395363,1734233438444,-150.121512,0.00013248,2]
[345395364,1734233438454,-150.121512,0.00013248,3]
[345395365,1734233438466,-317.341,0.0001328,2]
[345395366,1734233438475,-600.0,0.000133,4]
[345395367,1734233438485,-150.121512,0.00013348,2]
[345395368,1734233438495,-150.121512,0.00013348,3]
[345395369,1734233438505,-150.121512,0.00013348,3]
[345395370,1734233438515,-150.121512,0.00013348,2]
[345395373,1734233438525,-1000.0,0.000134,4]
[345395374,1734233438536,-150.121512,0.00013448,3]
[345395376,1734233438547,-150.121512,0.00013448,2]
[345395379,1734233438557,-1300.0,0.000135,4]
[345395381,1734233438567,-888.09,0.00013504,2]
[345395383,1734233438577,-1535.67,0.00013504,2]
[345395385,1734233438586,-1537.02,0.00013504,2]
[345395387,1734233438596,-150.121512,0.00013548,2]
[345395389,1734233438605,-150.121512,0.00013548,3]
[345395391,1734233438615,-1700.0,0.000136,4]
[345395393,1734233438625,-150.121512,0.00013648,3]
[345395395,1734233438635,-150.121512,0.00013648,2]
[345395397,1734233438644,-300.0,0.000137,5]
[345395399,1734233438654,-150.121512,0.00013748,2]
[345395401,1734233438664,-150.121512,0.00013748,3]
[345395403,1734233438675,-1000.0,0.00013769,2]
[345395405,1734233438685,-300.0,0.000138,5]
[345395407,1734233438695,-150.121512,0.00013848,3]
[345395409,1734233438705,-150.121512,0.00013848,2]
[345395411,1734233438717,-812.95,0.00013863,2]
[345395413,1734233438726,-769.32,0.00013863,2]
[345395415,1734233438736,-500.0,0.00013867,2]
[345395417,1734233438746,-39901.57057792,0.00013869,2]
[345395419,1734233438755,-314.75349383,0.00013874,2]
[345395421,1734233438765,-282.13894811,0.00013874,2]
[345395423,1734233438775,-500.0,0.00013875,2]
[345395425,1734233438785,-533.77026769,0.00013875,2]
[345395427,1734233438794,-500.0,0.00013875,2]
[345395429,1734233438804,-500.0,0.00013875,2]
[345395431,1734233438814,-526.63603414,0.00013875,2]
[345395433,1734233438824,-1394.99,0.00013875,2]
[345395435,1734233438833,-10011.11,0.00013875,2]
[345395437,1734233438843,-511.61179746,0.00013875,2]
[345395439,1734233438852,-500.0,0.00013875,2]
[345395441,1734233438861,-6841.52,0.00013875,2]
[345395443,1734233438871,-1283.95,0.00013875,2]
[345395445,1734233438880,-636.08486581,0.00013875,2]
[345395447,1734233438890,-10544.58,0.00013875,2]
[345395449,1734233438899,-500.0,0.00013875,2]
[345395451,1734233438910,-305.82222517,0.00013875,2]
[345395470,1734233439096,-18549.34,0.00013875,2]
[345395472,1734233439107,-500.0,0.00013875,2]
[345395475,1734233439121,-500.0,0.00013875,2]
[345395477,1734233439131,-491.9,0.00013875,2]
[345395479,1734233439141,-662.78,0.00013875,2]
[345395481,1734233439151,-2543.79,0.00013875,2]
[345395483,1734233439162,-500.0,0.00013875,2]
[345395485,1734233439172,-638.98322005,0.00013875,2]
[345395487,1734233439181,-500.0,0.00013875,2]
[345395489,1734233439191,-500.0,0.00013875,2]
[345395491,1734233439202,-580.94,0.00013875,2]
[345395493,1734233439212,-408.85157936,0.00013875,2]
[345395495,1734233439221,-8942.94,0.00013875,2]
[345395497,1734233439232,-510.89448274,0.00013875,2]
[345395499,1734233439242,-500.0,0.00013875,2]
[345395501,1734233439251,-500.0,0.00013875,2]
[345395503,1734233439260,-500.0,0.00013875,2]
[345395505,1734233439270,-500.0,0.00013875,2]
[345395507,1734233439280,-500.0,0.00013875,2]
[345395509,1734233439290,-7500.0,0.00013875,2]
[345395511,1734233439299,-520.03511968,0.00013876,2]
[345395513,1734233439309,-508.6039161,0.00013876,2]
[345395515,1734233439318,-512.88659034,0.00013876,2]
[345395516,1734233439328,-512.99059377,0.00013876,2]
[345395518,1734233439338,-506.68403248,0.00013876,2]
[345395520,1734233439347,-510.88463902,0.00013876,2]
[345395522,1734233439357,-524.3421285,0.00013876,2]
[345395524,1734233439366,-506.22607263,0.00013876,2]
[345395526,1734233439376,-504.38752444,0.00013876,2]
[345395528,1734233439385,-500.0,0.00013876,2]
[345395530,1734233439395,-500.0,0.00013876,2]
[345395532,1734233439405,-500.0,0.00013876,2]
[345395534,1734233439414,-500.0,0.00013876,2]
[345395536,1734233439423,-500.0,0.00013876,2]
[345395538,1734233439433,-500.0,0.00013876,2]
[345395540,1734233439444,-500.0,0.00013876,2]
[345395542,1734233439455,-500.0,0.00013876,2]
[345395545,1734233439470,-500.0,0.00013876,2]
[345395546,1734233439479,-500.0,0.00013876,2]
[345395549,1734233439489,-500.0,0.00013876,2]
[345395550,1734233439499,-500.0,0.00013876,2]
[345395553,1734233439509,-500.0,0.00013876,2]
[345395554,1734233439519,-500.0,0.00013876,2]
[345395556,1734233439529,-504.31896778,0.00013876,2]
[345395558,1734233439538,-500.0,0.00013876,2]
[345395561,1734233439549,-500.0,0.00013876,2]
[345395563,1734233439558,-924.79,0.00013876,2]
[345395564,1734233439568,-500.0,0.00013876,2]
[345395567,1734233439579,-500.0,0.00013876,2]
[345395569,1734233439588,-500.0,0.00013876,2]
[345395571,1734233439597,-500.0,0.00013876,2]
[345395572,1734233439607,-500.0,0.00013876,2]
[345395574,1734233439616,-500.0,0.00013876,2]
[345395576,1734233439626,-500.0,0.00013876,2]
[345395578,1734233439635,-277.30116649,0.00013876,2]
[345395580,1734233439645,-500.0,0.00013876,2]
[345395582,1734233439654,-534.34895284,0.00013876,2]
[345395584,1734233439666,-485.42878746,0.00013899,2]
[345395586,1734233439675,-198.70744235,0.00013899,2]
[345395588,1734233439685,-300.0,0.000139,5]
[345395590,1734233439695,-214.25466995,0.00013944,2]
[345395592,1734233439704,-1724.072,0.00013945,2]
[345395594,1734233439715,-150.121512,0.00013948,2]
[345395596,1734233439725,-150.121512,0.00013948,3]
[345395598,1734233439734,-817.0,0.00013951,2]
[345395600,1734233439744,-151.0,0.00013951,2]
[345395602,1734233439753,-564.0,0.00013951,2]
[345395604,1734233439763,-500.83346497,0.00013973,2]
[345395607,1734233439774,-388.48474492,0.00013973,2]
[345395609,1734233439784,-159.88081245,0.00013973,2]
[345395611,1734233439793,-406.4793026,0.00013973,2]
[345395612,1734233439802,-161.20363976,0.00013973,2]
[345395614,1734233439812,-203.77109921,0.00013973,2]
[345395616,1734233439822,-356.08315088,0.00013973,2]
[345395619,1734233439832,-500.88378785,0.00013973,2]
[345395621,1734233439842,-481.25310151,0.00013973,2]
[345395623,1734233439852,-500.0,0.00013973,2]
[345395624,1734233439862,-261.19876456,0.00013973,2]
[345395626,1734233439871,-2110.0,0.00013973,2]
[345395628,1734233439880,-6841.0,0.00013973,2]
[345395630,1734233439891,-520034.34013088,0.00013977,4]
[345395632,1734233439900,-500.0,0.00013977,2]
[345395634,1734233439910,-500.0,0.00013977,2]
[345395636,1734233439920,-500.0,0.00013977,2]
[345395638,1734233439929,-500.0,0.00013977,2]
[345395640,1734233439939,-302.38598128,0.00013977,2]
[345395642,1734233439949,-505.99657358,0.00013977,2]
[345395644,1734233439959,-500.0,0.00013977,2]
[345395646,1734233439970,-500.0,0.00013977,2]
[345395648,1734233439980,-597.97505058,0.00013977,2]
[345395650,1734233439990,-500.0,0.00013977,2]
[345395652,1734233439999,-500.0,0.00013977,2]
[345395654,1734233440009,-500.0,0.00013977,2]
[345395657,1734233440020,-519.07420115,0.00013977,2]
[345395659,1734233440030,-500.0,0.00013977,2]
[345395661,1734233440040,-500.0,0.00013977,2]
[345395663,1734233440050,-500.0,0.00013977,2]
[345395665,1734233440060,-924.79,0.00013977,2]
[345395667,1734233440070,-500.0,0.00013977,2]
[345395670,1734233440082,-500.0,0.00013977,2]
[345395671,1734233440091,-500.0,0.00013977,2]
[345395675,1734233440100,-500.0,0.00013977,2]
[345395677,1734233440110,-500.0,0.00013977,2]
[345395679,1734233440123,-500.0,0.00013977,2]
[345395681,1734233440133,-500.0,0.00013977,2]
[345395682,1734233440143,-152.093937,0.00013977,2]
[345395684,1734233440155,-150.691116,0.00013977,2]
[345395686,1734233440164,-150.883906,0.00013977,2]
[345395688,1734233440174,-500.0,0.00013977,2]
[345395690,1734233440185,-500.0,0.00013977,2]
[345395693,1734233440195,-500.0,0.00013977,2]
[345395694,1734233440204,-500.0,0.00013977,2]
[345395696,1734233440215,-911.18,0.00013977,2]
[345395698,1734233440225,-500.0,0.00013977,2]
[345395700,1734233440235,-500.0,0.00013977,2]
[345395702,1734233440245,-500.0,0.00013977,2]
[345395704,1734233440255,-500.0,0.00013977,2]
[345395705,1734233440265,-205.74271092,0.00013977,2]
[345395706,1734233440275,-1056.16,0.00013977,2]
[345395707,1734233440286,-1056.16,0.00013977,2]
[345395708,1734233440296,-500.0,0.00013977,2]
[345395709,1734233440306,-551.77954079,0.00013977,2]
[345395710,1734233440316,-507.61454599,0.00013977,2]
[345395711,1734233440327,-500.0,0.00013977,2]
[345395712,1734233440336,-500.0,0.00013977,2]
[345395713,1734233440345,-3656.05,0.00013977,2]
[345395714,1734233440355,-500.0,0.00013977,2]
[345395715,1734233440365,-500.0,0.00013977,2]
[345395716,1734233440374,-552.32133348,0.00013977,2]
[345395717,1734233440384,-500.0,0.00013977,2]
[345395718,1734233440394,-452.28420699,0.00013977,2]
[345395719,1734233440404,-500.0,0.00013977,2]
[345395720,1734233440414,-500.0,0.00013977,2]
[345395721,1734233440424,-500.0,0.00013977,2]
[345395722,1734233440434,-500.0,0.00013977,2]
[345395723,1734233440443,-1394.99,0.00013977,2]
[345395724,1734233440453,-1394.99,0.00013977,2]
[345395725,1734233440464,-500.0,0.00013977,2]
[345395726,1734233440473,-1394.99,0.00013977,2]
[345395727,1734233440483,-1394.99,0.00013977,2]
[345395728,1734233440492,-10011.11,0.00013977,2]
[345395729,1734233440501,-10011.11,0.00013977,2]
[345395730,1734233440511,-10011.11,0.00013977,2]
[345395731,1734233440521,-10011.11,0.00013977,2]
[345395732,1734233440530,-500.0,0.00013977,2]
[345395733,1734233440540,-385.85641427,0.00013977,2]
[345395734,1734233440550,-6841.52,0.00013977,2]
[345395735,1734233440559,-6841.52,0.00013977,2]
[345395736,1734233440569,-6841.52,0.00013977,2]
[345395737,1734233440579,-6841.52,0.00013977,2]
[345395738,1734233440589,-500.0,0.00013977,2]
[345395739,1734233440599,-1283.95,0.00013977,2]
[345395740,1734233440610,-1283.95,0.00013977,2]
[345395741,1734233440620,-1283.95,0.00013977,2]
[345395742,1734233440630,-1283.95,0.00013977,2]
[345395743,1734233440640,-10544.58,0.00013977,2]
[345395744,1734233440650,-10544.58,0.00013977,2]
[345395745,1734233440660,-10544.58,0.00013977,2]
[345395746,1734233440670,-10544.58,0.00013977,2]
[345395747,1734233440680,-463.35492797,0.00013977,2]
[345395748,1734233440689,-500.0,0.00013977,2]
[345395749,1734233440700,-500.0,0.00013977,2]
[345395750,1734233440711,-18549.34,0.00013977,2]
[345395751,1734233440721,-18549.34,0.00013977,2]
[345395752,1734233440731,-18549.34,0.00013977,2]
[345395753,1734233440742,-18549.34,0.00013977,2]
[345395754,1734233440752,-3548.81,0.00013977,2]
[345395755,1734233440762,-574.05180117,0.00013977,2]
[345395756,1734233440772,-500.0,0.00013977,2]
[345395757,1734233440782,-500.0,0.00013977,2]
[345395758,1734233440792,-500.0,0.00013977,2]
[345395759,1734233440802,-500.0,0.00013977,2]
[345395760,1734233440812,-500.0,0.00013977,2]
[345395761,1734233440822,-500.0,0.00013977,2]
[345395762,1734233440832,-186.36891459,0.00013977,2]
[345395763,1734233440842,-662.78,0.00013977,2]
[345395764,1734233440851,-662.78,0.00013977,2]
[345395765,1734233440861,-662.78,0.00013977,2]
[345395766,1734233440872,-662.78,0.00013977,2]
[345395767,1734233440882,-2543.79,0.00013977,2]
[345395768,1734233440894,-2543.79,0.00013977,2]
[345395769,1734233440903,-2543.79,0.00013977,2]
[345395770,1734233440913,-2543.79,0.00013977,2]
[345395771,1734233440923,-500.0,0.00013977,2]
[345395772,1734233440934,-539.30319392,0.00013977,2]
[345395773,1734233440944,-500.0,0.00013977,2]
[345395774,1734233440954,-500.0,0.00013977,2]
[345395775,1734233440965,-500.0,0.00013977,2]
[345395776,1734233440975,-500.0,0.00013977,2]
[345395777,1734233440985,-500.0,0.00013977,2]
[345395778,1734233440995,-292.1365122,0.00013977,2]
[345395779,1734233441005,-500.0,0.00013977,2]
[345395780,1734233441015,-2582.29,0.00013977,2]
[345395781,1734233441025,-371.81645514,0.00013977,2]
[345395782,1734233441036,-500.0,0.00013977,2]
[345395783,1734233441045,-500.0,0.00013977,2]
[345395784,1734233441055,-500.0,0.00013977,2]
[345395785,1734233441065,-500.0,0.00013977,2]
[345395786,1734233441080,-580.94,0.00013977,2]
[345395787,1734233441090,-580.94,0.00013977,2]
[345395788,1734233441100,-580.94,0.00013977,2]
[345395789,1734233441110,-580.94,0.00013977,2]
[345395790,1734233441122,-8942.94,0.00013977,2]
[345395791,1734233441131,-8942.94,0.00013977,2]
[345395792,1734233441141,-598.57225139,0.00013977,2]
[345395793,1734233441152,-8942.94,0.00013977,2]
[345395794,1734233441163,-8942.94,0.00013977,2]
[345395795,1734233441173,-151.0,0.00013977,2]
[345395796,1734233441183,-157.795213,0.00013977,2]
[345395797,1734233441192,-3250.31,0.00013977,2]
[345395798,1734233441202,-158.34745807,0.00013977,2]
[345395799,1734233441212,-500.0,0.00013977,2]
[345395800,1734233441222,-507.82431595,0.00013977,2]
[345395801,1734233441231,-341.78,0.00013977,2]
[345395802,1734233441241,-500.0,0.00013977,2]
[345395803,1734233441252,-500.0,0.00013977,2]
[345395804,1734233441261,-500.0,0.00013977,2]
[345395805,1734233441271,-510.85872106,0.00013977,2]
[345395806,1734233441280,-500.0,0.00013977,2]
[345395807,1734233441290,-7500.0,0.00013977,2]
[345395808,1734233441300,-500.0,0.00013977,2]
[345395809,1734233441309,-7500.0,0.00013977,2]
[345395810,1734233441320,-200.0,0.00013977,2]
[345395811,1734233441330,-253.176226,0.00013978,2]
[345395812,1734233441340,-4113.7,0.00013978,2]
[345395813,1734233441353,-500.0,0.00013978,2]
[345395814,1734233441364,-500.0,0.00013978,2]
[345395815,1734233441374,-500.0,0.00013978,2]
[345395816,1734233441383,-500.0,0.00013978,2]
[345395817,1734233441392,-500.0,0.00013978,2]
[345395818,1734233441402,-500.0,0.00013978,2]
[345395819,1734233441412,-500.0,0.00013978,2]
[345395820,1734233441421,-500.0,0.00013978,2]
[345395821,1734233441431,-500.0,0.00013978,2]
[345395822,1734233441441,-180.0649147,0.00013978,2]
[345395823,1734233441450,-500.0,0.00013978,2]
[345395824,1734233441460,-500.0,0.00013978,2]
[345395825,1734233441470,-500.0,0.00013978,2]
[345395826,1734233441480,-500.0,0.00013978,2]
[345395827,1734233441489,-500.0,0.00013978,2]
[345395828,1734233441499,-500.0,0.00013978,2]
[345395829,1734233441510,-542.03150947,0.00013978,2]
[345395830,1734233441520,-500.0,0.00013978,2]
[345395831,1734233441530,-500.0,0.00013978,2]
[345395832,1734233441540,-3339.33,0.00013978,2]
[345395833,1734233441549,-500.0,0.00013978,2]
[345395834,1734233441559,-544.70041427,0.00013978,2]
[345395835,1734233441569,-500.0,0.00013978,2]
[345395836,1734233441578,-210901.45738637,0.00013978,2]
[345395837,1734233441588,-536.5466629,0.00013978,2]
[345395838,1734233441597,-334.59120997,0.00013978,2]
[345395839,1734233441607,-500.0,0.00013978,2]
[345395840,1734233441617,-268.20461666,0.00013978,2]
[345395841,1734233441627,-501.60519787,0.00013978,2]
[345395842,1734233441636,-500.0,0.00013978,2]
[345395843,1734233441646,-518.09130265,0.00013978,2]
[345395844,1734233441656,-500.0,0.00013978,2]
[345395845,1734233441666,-500.85692178,0.00013978,2]
[345395846,1734233441676,-500.0,0.00013978,2]
[345395847,1734233441685,-500.0,0.00013978,2]
[345395848,1734233441695,-500.0,0.00013978,2]
[345395849,1734233441705,-500.0,0.00013978,2]
[345395850,1734233441716,-500.0,0.00013978,2]
[345395851,1734233441726,-500.0,0.00013978,2]
[345395852,1734233441736,-916.6981998,0.00013978,2]
[345395853,1734233441746,-193.00023971,0.00013978,2]
[345395854,1734233441756,-587.07238049,0.00013978,2]
[345395855,1734233441766,-500.0,0.00013978,2]
[345395856,1734233441775,-5599.0532633,0.00013978,2]
[345395857,1734233441785,-402.6713962,0.00013978,2]
[345395858,1734233441794,-2809.416563,0.00013978,2]
[345395859,1734233441804,-578.94,0.00013978,2]
[345395860,1734233441813,-500.0,0.00013978,2]
[345395861,1734233441823,-6755.58,0.00013978,2]
[345395862,1734233441832,-500.0,0.00013978,2]
[345395863,1734233441843,-532.25422013,0.00013978,2]
[345395864,1734233441852,-525.02,0.00013978,2]
[345395865,1734233441863,-500.0,0.00013978,2]
[345395866,1734233441873,-160.476214,0.00013978,2]
[345395867,1734233441883,-160.476214,0.00013978,2]
[345395868,1734233441894,-500.0,0.00013978,2]
[345395869,1734233441904,-1000.0,0.00013978,2]
[345395870,1734233441914,-160.476214,0.00013978,2]
[345395871,1734233441923,-160.476214,0.00013978,2]
[345395872,1734233441933,-529.32693512,0.00013978,2]
[345395873,1734233441943,-500.0,0.00013978,2]
[345395874,1734233441952,-500.0,0.00013978,2]
[345395875,1734233441964,-2563.75,0.00013978,2]
[345395876,1734233441976,-500.0,0.00013978,2]
[345395877,1734233441986,-524.58006995,0.00013978,2]
[345395878,1734233441996,-207.999852,0.00013978,2]
[345395879,1734233442006,-207.999852,0.00013978,2]
[345395880,1734233442016,-609.39897224,0.00013978,2]
[345395881,1734233442026,-207.999852,0.00013978,2]
[345395882,1734233442037,-207.999852,0.00013978,2]
[345395883,1734233442047,-534.98791556,0.00013978,2]
[345395884,1734233442058,-311.10858743,0.00013978,2]
[345395885,1734233442069,-500.0,0.00013978,2]
[345395886,1734233442082,-500.0,0.00013978,2]
[345395887,1734233442092,-151.0,0.00013978,2]
[345395888,1734233442102,-500.0,0.00013978,2]
[345395889,1734233442112,-151.0,0.00013978,2]
[345395890,1734233442124,-544.70258485,0.00013978,2]
[345395891,1734233442134,-156.495474,0.00013978,2]
[345395892,1734233442144,-500.0,0.00013978,2]
[345395893,1734233442156,-1993.9799837,0.00013978,2]
[345395894,1734233442167,-500.0,0.00013978,2]
[345395895,1734233442176,-514.80245152,0.00013978,2]
[345395896,1734233442187,-535.08400846,0.00013978,2]
[345395897,1734233442197,-523.90490836,0.00013978,2]
[345395898,1734233442208,-654.387944,0.00013978,2]
[345395899,1734233442223,-654.387944,0.00013978,2]
[345395900,1734233442234,-500.0,0.00013978,2]
[345395901,1734233442245,-500.0,0.00013978,2]
[345395902,1734233442255,-521.24437308,0.00013978,2]
[345395903,1734233442266,-1394.99,0.00013978,2]
[345395904,1734233442277,-1394.99,0.00013978,2]
[345395905,1734233442287,-654.387944,0.00013978,2]
[345395906,1734233442297,-654.387944,0.00013978,2]
[345395907,1734233442307,-442.23279463,0.00013978,2]
[345395908,1734233442316,-500.0,0.00013978,2]
[345395909,1734233442326,-500.0,0.00013978,2]
[345395910,1734233442336,-500.0,0.00013978,2]
[345395911,1734233442346,-10011.11,0.00013978,2]
[345395912,1734233442356,-10011.11,0.00013978,2]
[345395913,1734233442366,-13471.6776296,0.00013978,2]
[345395914,1734233442375,-500.0,0.00013978,2]
[345395915,1734233442385,-6841.52,0.00013978,2]
[345395916,1734233442531,-320.879224,0.00013978,2]
[345395917,1734233442543,-6841.52,0.00013978,2]
[345395918,1734233442553,-320.879224,0.00013978,2]